Workbook

Sheet Лист1
A1: Школа | F1: Утвердил: | G1: должность | H1: директор
A2: Типовое примерное меню приготавливаемых блюд | G2: фамилия | H2: Киркина Е.Г.
A3: Возрастная категория | E3: 7-11 лет | G3: дата | H3: 9 | I3: 12 | J3: 2024
H4: день | I4: месяц | J4: год
A5: Неделя | B5: День недели | C5: Прием пищи | D5: Раздел меню | E5: Блюда | F5: Вес блюда, г | G5: Белки | H5: Жиры | I5: Углеводы | J5: Калорийность | K5: № рецептуры | L5: Цена
A6: 1 | B6: 1 | C6: Завтрак | D6: гор.блюдо | E6: Котлеты "Аппетитные запеченные | F6: 90 | G6: 10.01 | H6: 12.70 | I6: 10.98 | J6: 198 | K6: 2022
E7: каша гречневая вязкая | F7: 150 | G7: 3.46 | H7: 4.63 | I7: 21.78 | J7: 143 | K7: 2014
D8: гор.напиток | E8: чай с сахаром | F8: 208 | G8: 0.02 | H8: 0.00 | I8: 7.99 | J8: 32 | K8: 2014
D9: хлеб | E9: ='[1]1'!D8 -> Хлебная корзина (хлеб пшеничный,хлеб ржано-пшеничный.) | F9: ='[1]1'!E8 -> 40 | G9: ='[1]1'!H8 -> 2.52 | H9: ='[1]1'!I8 -> 0.36 | I9: ='[1]1'!J8 -> 18.84 | J9: ='[1]1'!G8 -> 91 | K9: ='[2]1'!$C$8 -> ТТК
D10: закуска
D11: фрукты | E11: плоды и ягоды свежие (яблоки) | F11: 120 | G11: 0.48 | H11: 0.48 | I11: 11.76 | J11: 56 | K11: 338
D13: итого | F13: =SUM(F6:F12) -> 608 | G13: =SUM(G6:G12) -> 16.49 | H13: 18.17 | I13: 71.35 | J13: 520 | L13: =SUM(L6:L12) -> 0
A14: =A6 -> 1 | B14: =B6 -> 1 | C14: Обед | D14: закуска
D15: 1 блюдо
D16: 2 блюдо
D17: гарнир
D18: напиток
D19: хлеб бел.
D20: хлеб черн.
D23: итого | F23: =SUM(F14:F22) -> 0 | G23: =SUM(G14:G22) -> 0 | H23: 0 | I23: 0 | J23: 0 | L23: =SUM(L14:L22) -> 0
A24: =A6 -> 1 | B24: =B6 -> 1 | C24: Итого за день: | F24: =F13+F23 -> 608 | G24: =G13+G23 -> 16.49 | H24: 18.17 | I24: 71.35 | J24: 520 | L24: =L13+L23 -> 0
A25: 1 | B25: 2 | C25: Завтрак | D25: гор.блюдо | E25: каша вязкая молочная изгречневой крупы с маслом | F25: 155 | G25: 6.85 | H25: 9.68 | I25: 20.74 | J25: 197 | K25: 2015
D26: булочное | E26: блинчики со сгущенным молоком | F26: 100 | G26: 5.67 | H26: 4.19 | I26: 28.45 | J26: 174 | K26: 2018
D27: гор.напиток | E27: компот из замороженной компотной смеси | F27: 200 | G27: 0.13 | H27: 0.02 | I27: 11.15 | J27: 46 | K27: 2021
D28: хлеб | E28: батон | F28: 25 | G28: 1.87 | H28: 0.72 | I28: 12.85 | J28: 66
D29: булочное | E29: печенье весовое 5 шт. | F29: 16 | G29: 1.1 | H29: 2.2 | I29: 11.85 | J29: 71
D30: кисломолочное | E30: сыр порциями | F30: 15 | G30: 3.94 | H30: 3.99 | I30: 0 | J30: 53 | K30: ='[2]1'!$C$7 -> 2015 г
D32: итого | F32: =SUM(F25:F31) -> 511 | G32: =SUM(G25:G31) -> 19.56 | H32: =SUM(H25:H31) -> 20.8 | I32: =SUM(I25:I31) -> 85.04 | J32: =SUM(J25:J31) -> 607 | L32: 0
A33: =A25 -> 1 | B33: =B25 -> 2 | C33: Обед | D33: закуска
D34: 1 блюдо
D35: 2 блюдо
D36: гарнир
D37: напиток
D38: хлеб бел.
D39: хлеб черн.
D42: итого | F42: =SUM(F33:F41) -> 0 | G42: =SUM(G33:G41) -> 0 | H42: =SUM(H33:H41) -> 0 | I42: =SUM(I33:I41) -> 0 | J42: =SUM(J33:J41) -> 0 | L42: 0
A43: =A25 -> 1 | B43: =B25 -> 2 | C43: Итого за день: | F43: =F32+F42 -> 511 | G43: =G32+G42 -> 19.56 | H43: =H32+H42 -> 20.8 | I43: =I32+I42 -> 85.04 | J43: =J32+J42 -> 607 | L43: 0
A44: 1 | B44: 3 | C44: Завтрак | D44: гор.блюдо | E44: бифштекс рубленый по-домашнему запеченый | F44: 90 | G44: 10.69 | H44: 12.03 | I44: 8.36 | J44: 184 | K44: 2022
E45: макаронные изделия отварные | F45: 150 | G45: 5.04 | H45: 4.06 | I45: 35.9 | J45: 200 | K45: 2015
D46: гор.напиток | E46: чай с сахаром | F46: 208 | G46: 0.02 | I46: 7.99 | J46: 32 | K46: ='[3]1'!C6 -> 2021
D47: хлеб | E47: ='[3]1'!D8 -> Хлебная корзина (хлеб пшеничный,хлеб ржано-пшеничный.) | F47: ='[3]1'!E8 -> 40 | G47: ='[3]1'!H8 -> 2.52 | H47: ='[3]1'!I8 -> 0.36 | I47: ='[3]1'!J8 -> 18.84 | J47: ='[3]1'!G8 -> 91 | K47: ='[3]1'!C8 -> ТТК
D48: фрукты
D49: закуска | E49: салат из свеклы отварной с маслом | F49: 60 | G49: 1.33 | H49: 1.36 | I49: 1.14 | J49: 22 | K49: 2015
D51: итого | F51: =SUM(F44:F50) -> 548 | G51: =SUM(G44:G50) -> 19.6 | H51: =SUM(H44:H50) -> 17.81 | I51: =SUM(I44:I50) -> 72.23 | J51: =SUM(J44:J50) -> 529 | L51: 0
A52: =A44 -> 1 | B52: =B44 -> 3 | C52: Обед | D52: закуска
D53: 1 блюдо
D54: 2 блюдо
D55: гарнир
D56: напиток
D57: хлеб бел.
D58: хлеб черн.
D61: итого | F61: =SUM(F52:F60) -> 0 | G61: =SUM(G52:G60) -> 0 | H61: =SUM(H52:H60) -> 0 | I61: =SUM(I52:I60) -> 0 | J61: =SUM(J52:J60) -> 0 | L61: 0
A62: =A44 -> 1 | B62: =B44 -> 3 | C62: Итого за день: | F62: =F51+F61 -> 548 | G62: =G51+G61 -> 19.6 | H62: =H51+H61 -> 17.81 | I62: =I51+I61 -> 72.23 | J62: =J51+J61 -> 529 | L62: 0
A63: 1 | B63: 4 | C63: Завтрак | D63: гор.блюдо | E63: плов с куриными грудками | F63: 200 | G63: 15.44 | H63: 19.29 | I63: 45.88 | J63: 419 | K63: 2021
D65: гор.напиток | E65: напиток из урюка | F65: 200 | G65: 0.8 | H65: 0 | I65: 18.46 | J65: 32 | K65: 2023
D66: хлеб | E66: ='[4]1'!$D$8 -> Хлебная корзина (хлеб пшеничный,хлеб ржано-пшеничный.) | F66: ='[4]1'!$E$8 -> 40 | G66: ='[4]1'!$H$8 -> 2.52 | H66: ='[4]1'!$I$8 -> 0.36 | I66: ='[4]1'!$J$8 -> 18.84 | J66: ='[4]1'!$G$8 -> 91 | K66: =$K$47 -> ТТК
D67: фрукты
D68: закуска | E68: салат из квашеной капусты | F68: ='[4]1'!$E$7 -> 60 | G68: 0.42 | H68: 0.06 | I68: 1.14 | J68: 7 | K68: 2020
D70: итого | F70: =SUM(F63:F69) -> 500 | G70: =SUM(G63:G69) -> 19.18 | H70: =SUM(H63:H69) -> 19.71 | I70: =SUM(I63:I69) -> 84.32 | J70: =SUM(J63:J69) -> 549 | L70: 0
A71: =A63 -> 1 | B71: =B63 -> 4 | C71: Обед | D71: закуска
D72: 1 блюдо
D73: 2 блюдо
D74: гарнир
D75: напиток
D76: хлеб бел.
D77: хлеб черн.
D80: итого | F80: =SUM(F71:F79) -> 0 | G80: =SUM(G71:G79) -> 0 | H80: =SUM(H71:H79) -> 0 | I80: =SUM(I71:I79) -> 0 | J80: =SUM(J71:J79) -> 0 | L80: 0
A81: =A63 -> 1 | B81: =B63 -> 4 | C81: Итого за день: | F81: =F70+F80 -> 500 | G81: =G70+G80 -> 19.18 | H81: =H70+H80 -> 19.71 | I81: =I70+I80 -> 84.32 | J81: =J70+J80 -> 549 | L81: 0
A82: 1 | B82: 5 | C82: Завтрак | D82: гор.блюдо | E82: каша вязкая молочная рисовой крупы с маслом | F82: 155 | G82: 8.6 | H82: 8.08 | I82: 35.55 | J82: 249 | K82: 2015
D84: гор.напиток | E84: напиток из вишни | F84: 200 | G84: 0.12 | H84: 0.03 | I84: 11.57 | J84: 48 | K84: 2023
D85: хлеб | E85: батон | F85: 30 | G85: 2.25 | H85: 0.87 | I85: 15.42 | J85: 79
D86: кисломолочный | E86: кисломолочный продукт дмк | F86: 125 | G86: 3.5 | H86: 3.1 | I86: 5.12 | J86: 63
D87: кисломолочный | E87: сыр порциями | F87: 15 | G87: 3.94 | H87: 1999-03-01 | I87: 0 | J87: 53 | K87: 2015
D89: итого | F89: =SUM(F82:F88) -> 525 | G89: =SUM(G82:G88) -> 18.41 | H89: =SUM(H82:H88) -> 36232.08 | I89: =SUM(I82:I88) -> 67.66 | J89: =SUM(J82:J88) -> 492 | L89: 0
A90: =A82 -> 1 | B90: =B82 -> 5 | C90: Обед | D90: закуска
D91: 1 блюдо
D92: 2 блюдо
D93: гарнир
D94: напиток
D95: хлеб бел.
D96: хлеб черн.
D99: итого | F99: =SUM(F90:F98) -> 0 | G99: =SUM(G90:G98) -> 0 | H99: =SUM(H90:H98) -> 0 | I99: =SUM(I90:I98) -> 0 | J99: =SUM(J90:J98) -> 0 | L99: 0
A100: =A82 -> 1 | B100: =B82 -> 5 | C100: Итого за день: | F100: =F89+F99 -> 525 | G100: =G89+G99 -> 18.41 | H100: =H89+H99 -> 36232.08 | I100: =I89+I99 -> 67.66 | J100: =J89+J99 -> 492 | L100: 0
A101: 2 | B101: 1 | C101: Завтрак | D101: гор.блюдо | E101: сосиски отварные | F101: 50 | G101: 5.7 | H101: 7.86 | I101: 4.4 | J101: 113 | K101: 2015
D102: гор.блюдо | E102: каша вязкая молочная из пшенной крупы с маслом | F102: 155 | G102: 10.6 | H102: 6.62 | I102: 32.06 | J102: 230 | K102: 2015
D103: гор.напиток | E103: напиток из урюка | F103: 200 | G103: 0.02 | I103: 7,99 | J103: 32 | K103: ='[5]1'!C6 -> 2023 г
D104: хлеб | E104: батон | F104: 25 | G104: 1.87 | H104: 0.72 | I104: 12.85 | J104: 66
D105: фрукты | E105: плоды и ягоды свежие яблоки | F105: 120 | G105: 0.48 | H105: 0.48 | I105: 11.76 | J105: 56 | K105: 338
D106: булочное | E106: вафли весовые | F106: 21 | G106: 1.1 | H106: 1.42 | I106: 9.74 | J106: 56
D108: итого | F108: =SUM(F101:F107) -> 571 | G108: =SUM(G101:G107) -> 19.77 | H108: 17.1 | I108: 79.71 | J108: 553 | L108: =SUM(L101:L107) -> 0
A109: =A101 -> 2 | B109: =B101 -> 1 | C109: Обед | D109: закуска
D110: 1 блюдо
D111: 2 блюдо
D112: гарнир
D113: напиток
D114: хлеб бел.
D115: хлеб черн.
D118: итого | F118: =SUM(F109:F117) -> 0 | G118: =SUM(G109:G117) -> 0 | H118: 0 | I118: 0 | J118: 0 | L118: =SUM(L109:L117) -> 0
A119: =A101 -> 2 | B119: =B101 -> 1 | C119: Итого за день: | F119: =F108+F118 -> 571 | G119: =G108+G118 -> 19.77 | H119: =H108+H118 -> 17.1 | I119: =I108+I118 -> 79.71 | J119: =J108+J118 -> 553 | L119: 0
A120: 2 | B120: 2 | C120: Завтрак | D120: гор.блюдо | E120: жаркое из филе куриных грудок | F120: 200 | G120: 12.89 | H120: 15.91 | I120: 35.79 | J120: 341 | K120: 2023
D122: гор.напиток | E122: чай с сахаром | F122: 208 | G122: 0.02 | I122: 7.99 | J122: 32 | K122: 2021
D123: хлеб | E123: ='[6]1'!$D$8 -> Хлебная корзина (хлеб пшеничный,хлеб ржано-пшеничный.) | F123: ='[6]1'!$E$8 -> 40 | G123: ='[6]1'!$H$8 -> 2.52 | H123: ='[6]1'!$I$8 -> 0.36 | I123: ='[6]1'!$J$8 -> 18.84 | J123: ='[6]1'!$G$8 -> 91 | K123: ='[6]1'!$C$8 -> ТТК
D124: фрукты
D125: закуска | E125: салат из белокачанной капусты | F125: 60 | G125: 0.93 | H125: 3.05 | I125: 5.64 | J125: 54 | K125: 2015
D127: итого | F127: =SUM(F120:F126) -> 508 | G127: =SUM(G120:G126) -> 16.36 | H127: 19.32 | I127: 68.26 | J127: 518 | L127: =SUM(L120:L126) -> 0
A128: =A120 -> 2 | B128: =B120 -> 2 | C128: Обед | D128: закуска
D129: 1 блюдо
D130: 2 блюдо
D131: гарнир
D132: напиток
D133: хлеб бел.
D134: хлеб черн.
D137: итого | F137: =SUM(F128:F136) -> 0 | G137: =SUM(G128:G136) -> 0 | H137: 0 | I137: 0 | J137: 0 | L137: =SUM(L128:L136) -> 0
A138: =A120 -> 2 | B138: =B120 -> 2 | C138: Итого за день: | F138: =F127+F137 -> 508 | G138: =G127+G137 -> 16.36 | H138: =H127+H137 -> 19.32 | I138: =I127+I137 -> 68.26 | J138: =J127+J137 -> 518 | L138: 0
A139: 2 | B139: 3 | C139: Завтрак | D139: гор.блюдо | E139: чикен | F139: 90 | G139: 11.1 | H139: 10.1 | I139: 11.09 | J139: 176 | K139: 2022
D140: гор.блюдо | E140: макаронные изделия отварные | F140: 150 | G140: 5.04 | H140: 4.06 | I140: 35.9 | J140: 200 | K140: 2015
D141: гор.напиток | E141: компот из свежих плодов яблоки | F141: 200 | G141: 0.08 | H141: 0.08 | I141: 11.94 | J141: 49 | K141: 2021
D142: хлеб | E142: хлеб ржано-пшеничный ,пшеничный | F142: ='[7]1'!E8 -> 40 | G142: ='[7]1'!H8 -> 2.52 | H142: ='[7]1'!I8 -> 0.36 | I142: ='[7]1'!J8 -> 18.84 | J142: ='[7]1'!G8 -> 91 | K142: ='[7]1'!C8 -> ТТК
D143: фрукты
D144: закуска | E144: салат из свеклы отварной | F144: 60 | G144: 1.33 | H144: 1.36 | I144: 1.14 | J144: 22 | K144: 2015
D146: итого | F146: =SUM(F139:F145) -> 540 | G146: =SUM(G139:G145) -> 20.07 | H146: 15.96 | I146: 78.91 | J146: 538 | L146: =SUM(L139:L145) -> 0
A147: =A139 -> 2 | B147: =B139 -> 3 | C147: Обед | D147: закуска
D148: 1 блюдо
D149: 2 блюдо
D150: гарнир
D151: напиток
D152: хлеб бел.
D153: хлеб черн.
D156: итого | F156: =SUM(F147:F155) -> 0 | G156: =SUM(G147:G155) -> 0 | H156: 0 | I156: 0 | J156: 0 | L156: =SUM(L147:L155) -> 0
A157: =A139 -> 2 | B157: =B139 -> 3 | C157: Итого за день: | F157: =F146+F156 -> 540 | G157: =G146+G156 -> 20.07 | H157: =H146+H156 -> 15.96 | I157: =I146+I156 -> 78.91 | J157: =J146+J156 -> 538 | L157: 0
A158: 2 | B158: 4 | C158: Завтрак | D158: гор.блюдо | E158: плов с говядиной | F158: 200 | G158: 15.44 | H158: 19.29 | I158: 51.2 | J158: 430 | K158: 2023
D160: гор.напиток | E160: чай с сахаром | F160: 208 | G160: 0.02 | H160: 0 | I160: 7.99 | J160: 32 | K160: ='[8]1'!C6 -> 2021г
D161: хлеб | E161: ='[8]1'!$D$8 -> Хлебная корзина (хлеб пшеничный,хлеб ржано-пшеничный.) | F161: =F142 -> 40 | G161: 2.52 | H161: 0.36 | I161: 18.84 | J161: 91 | K161: ТТК
D162: фрукты
D163: закуска | E163: салат из моркови | F163: 60 | G163: 2.06 | H163: 0.12 | I163: 2.28 | J163: 14 | K163: 2004
D165: итого | F165: =SUM(F158:F164) -> 508 | G165: =SUM(G158:G164) -> 20.04 | H165: 19.77 | I165: 80.31 | J165: 567 | L165: =SUM(L158:L164) -> 0
A166: =A158 -> 2 | B166: =B158 -> 4 | C166: Обед | D166: закуска
D167: 1 блюдо
D168: 2 блюдо
D169: гарнир
D170: напиток
D171: хлеб бел.
D172: хлеб черн.
D175: итого | F175: =SUM(F166:F174) -> 0 | G175: =SUM(G166:G174) -> 0 | H175: 0 | I175: 0 | J175: 0 | L175: =SUM(L166:L174) -> 0
A176: =A158 -> 2 | B176: =B158 -> 4 | C176: Итого за день: | F176: =F165+F175 -> 508 | G176: =G165+G175 -> 20.04 | H176: =H165+H175 -> 19.77 | I176: =I165+I175 -> 80.31 | J176: =J165+J175 -> 567 | L176: 0
A177: 2 | B177: 5 | C177: Завтрак | D177: гор.блюдо | E177: каша вязкая молочная из рисовой и пшенной крупы с маслом | F177: 155 | G177: 8,69 | H177: 9,32 | I177: 26.4 | J177: 224 | K177: 2015
D178: кисломолочный | E178: кисломолочный продукт дмк | F178: 125 | G178: 3.5 | H178: 3.12 | I178: 5.12 | J178: 63
D179: гор.напиток | E179: напиток яблочный | F179: 200 | G179: 0.1 | H179: 0.1 | I179: 12.43 | J179: 52 | K179: 2004
D180: хлеб | E180: батон | F180: 25 | G180: 1.87 | H180: 0.72 | I180: 12.85 | J180: 66
D181: булочные | E181: вафли весовые | F181: 21 | G181: 1.1 | H181: 1.42 | I181: 9.74 | J181: 56
D182: кисломолочный | E182: сыр порциями | F182: 15 | G182: 3.94 | H182: 3,99 | I182: 0 | J182: 53 | K182: 2015
D184: итого | F184: =SUM(F177:F183) -> 541 | G184: =SUM(G177:G183) -> 10.51 | H184: 16.22 | I184: 87.76 | J184: 514 | L184: =SUM(L177:L183) -> 0
A185: =A177 -> 2 | B185: =B177 -> 5 | C185: Обед | D185: закуска
D186: 1 блюдо
D187: 2 блюдо
D188: гарнир
D189: напиток
D190: хлеб бел.
D191: хлеб черн.
D194: итого | F194: =SUM(F185:F193) -> 0 | G194: =SUM(G185:G193) -> 0 | H194: 0 | I194: 0 | J194: 0 | L194: =SUM(L185:L193) -> 0
A195: =A177 -> 2 | B195: =B177 -> 5 | C195: Итого за день: | F195: =F184+F194 -> 541 | G195: =G184+G194 -> 10.51 | H195: =H184+H194 -> 16.22 | I195: =I184+I194 -> 87.76 | J195: =J184+J194 -> 514 | L195: 0
C196: Среднее значение за период: | F196: =(F24+F43+F62+F81+F100+F119+F138+F157+F176+F195)/(IF(F24=0,0,1)+IF(F43=0,0,1)+IF(F62=0,0,1)+IF(F81=0,0,1)+IF(F100=0,0,1)+IF(F119=0,0,1)+IF(F138=0,0,1)+IF(F157=0,0,1)+IF(F176=0,0,1)+IF(F195=0,0,1)) -> 536 | G196: =(G24+G43+G62+G81+G100+G119+G138+G157+G176+G195)/(IF(G24=0,0,1)+IF(G43=0,0,1)+IF(G62=0,0,1)+IF(G81=0,0,1)+IF(G100=0,0,1)+IF(G119=0,0,1)+IF(G138=0,0,1)+IF(G157=0,0,1)+IF(G176=0,0,1)+IF(G195=0,0,1)) -> 17.999 | H196: 3639.694 | I196: 77.555 | J196: 538.7 | L196: =(L24+L43+L62+L81+L100+L119+L138+L157+L176+L195)/(IF(L24=0,0,1)+IF(L43=0,0,1)+IF(L62=0,0,1)+IF(L81=0,0,1)+IF(L100=0,0,1)+IF(L119=0,0,1)+IF(L138=0,0,1)+IF(L157=0,0,1)+IF(L176=0,0,1)+IF(L195=0,0,1)) -> 
